fUSD/lending_fUSD_20250515
["ID","MTS","AMOUNT","RATE_DAILY","PERIOD"]
[361215897,1747350632260,-223.35,0.00010092,2]
[361215898,1747350632270,-23900.0,0.00010092,2]
[361215899,1747350632280,-152.0,0.00010092,2]
[361215900,1747350632289,-3317.24,0.00010133,2]
[361215901,1747350632299,-150.0,0.00010165,2]
[361215902,1747350632309,-150.0,0.00010193,2]
[361215903,1747350632318,-215.55,0.00010212,2]
[361215904,1747350632327,-150.0,0.00010254,2]
[361215905,1747350632336,-243.037,0.00010299,2]
[361215906,1747350632346,-4768.457,0.00010299,2]
[361215907,1747350632355,-150.0,0.00010437,2]
[361215908,1747350632365,-150.0,0.00010437,2]
[361215909,1747350632374,-207.4,0.00010449,2]
[361215910,1747350632383,-151.0,0.00010469,2]
[361215911,1747350632392,-151.0,0.00010469,2]
[361215912,1747350632402,-155.0,0.00010469,2]
[361215913,1747350632411,-719.52358209,0.00010469,2]
[361215915,1747350632421,-668.65185757,0.00010469,2]
[361215917,1747350632430,-151.0,0.00010469,2]
[361215919,1747350632440,-151.0,0.00010469,2]
[361215921,1747350632449,-200.0,0.00010469,2]
[361215923,1747350632459,-44197.54,0.00010475,2]
[361215925,1747350632468,-999.99,0.00010475,2]
[361215927,1747350632477,-9999.99,0.00010475,2]
[361215929,1747350632487,-150.99,0.00010475,2]
[361215931,1747350632495,-267.24,0.00010475,2]
[361215932,1747350632505,-1322.53,0.00010481,2]
[361215933,1747350632515,-250.0,0.00010511,2]
[361215935,1747350632524,-299.99,0.00010511,2]
[361215936,1747350632534,-150.0,0.0001062,2]
[361215937,1747350632543,-200.0,0.00010655,2]
[361215938,1747350632553,-150.0,0.00010838,2]
[361215940,1747350632563,-671.9478,0.000109,2]
[361215942,1747350632572,-913.9173,0.000109,2]
[361215944,1747350632582,-200.0,0.000109,2]
[361215946,1747350632591,-161.28003003,0.000109,2]
[361215948,1747350632601,-154.04837008,0.000109,2]
[361215950,1747350632610,-291.60288438,0.000109,2]
[361215951,1747350632619,-384.97311816,0.000109,2]
[361215952,1747350632629,-500.0,0.00010973,2]
[361215953,1747350632638,-500.0,0.00010973,2]
[361215954,1747350632647,-150.0,0.00010986,2]
[361215955,1747350632657,-150.0,0.00010986,2]
[361215956,1747350632666,-150.0,0.00010986,2]
[361215957,1747350632675,-150.0,0.00010986,2]
[361215958,1747350632686,-457.61,0.00010986,2]
[361215959,1747350632695,-151.13102532,0.0001099,2]
[361215960,1747350632705,-1000.0,0.00010998,2]
[361215961,1747350632714,-250.0,0.00010999,2]
[361215962,1747350632724,-250.0,0.00010999,2]
[361215963,1747350632733,-548.0,0.00010999,2]
[361215964,1747350632743,-226.31951796,0.00010999,2]
[361215965,1747350632752,-63680.42619394,0.00010999,2]
[361215966,1747350632765,-51383.97239968,0.00010999,2]
[361215967,1747350632781,-934.33,0.00010999,2]
[361215968,1747350632899,-706.58205436,0.00010999,2]
[361215969,1747350632987,-1192.49994515,0.00010999,2]
[361215970,1747350632998,-1181.180015,0.00010999,2]
[361215971,1747350633012,-1199.4696033,0.00010999,2]
[361215972,1747350633023,-1222.38034376,0.00010999,2]
[361215973,1747350633034,-3130.47716,0.00010999,2]
[361215979,1747350638139,-73888.17945216,0.00010999,2]
[361215980,1747350638153,-1543.17515721,0.00010999,2]
[361215981,1747350638216,-1042.82955653,0.00010999,2]
[361215982,1747350638227,-7918.61196079,0.00010999,2]
[361215983,1747350638238,-40774.2401,0.00010999,2]
[361215984,1747350638350,-3365.73286742,0.00010999,2]
[361215997,1747350640251,-1209.69500997,0.00010999,2]
[361216001,1747350640302,-925.2436,0.00010999,2]
[361216002,1747350640553,-378.925,0.00010999,2]
[361216003,1747350640589,-2881.1945751,0.00010999,2]
[361216054,1747350646121,-26293.6568117,0.00010999,2]
[361216058,1747350646273,-2374.5897,0.00010999,2]
[361216059,1747350646320,-1808.19999996,0.00010999,2]
[361216060,1747350646373,-993.31187449,0.00010999,2]
[361216064,1747351103035,1000.0,9.713e-05,2]
[361216065,1747351103216,1000.0,9.392e-05,2]
[361216066,1747351103345,1000.0,9.613e-05,2]
[361216067,1747351103459,1000.0,9.496e-05,2]
[361216068,1747351103658,1000.0,9.822e-05,2]
[361216069,1747351103785,1000.0,9.577e-05,2]
[361216070,1747351103875,1000.0,9.779e-05,2]
[361216071,1747351104020,-165.39,9.912e-05,2]
[361216072,1747351104408,1000.0,9.884e-05,2]
[361216073,1747351106029,-187.876677,9.912e-05,2]
[361216074,1747351109570,-171.80959781,9.912e-05,2]
[361216075,1747351111164,-181.56026312,9.912e-05,2]
[361216076,1747351116407,-249.89013907,9.912e-05,2]
[361216077,1747351118954,-43.473323,9.912e-05,2]
[361216078,1747351162919,321.1963316,9.779e-05,2]
[361216079,1747351242500,177.2386744,9.906e-05,2]
[361216080,1747351242538,185.0113256,9.906e-05,2]
[361216081,1747351282779,1000.0,8.389e-05,2]
[361216082,1747351343161,8814.9886744,9.531e-05,2]
[361216083,1747351343182,10000.0,9.531e-05,2]
[361216084,1747351343202,5085.0113256,9.531e-05,2]
[361216086,1747351408379,284.46,9.554e-05,2]
[361216087,1747351435237,-228.85556636,9.956e-05,2]
[361216088,1747351437317,-229.67875596,9.956e-05,2]
[361216089,1747351439042,-231.06477113,9.956e-05,2]
[361216090,1747351441883,-156.62299645,9.956e-05,2]
[361216091,1747351445255,-153.7779101,9.956e-05,2]
[361216092,1747351448490,452.382021,7.945e-05,2]
[361216093,1747351484690,1405.36,8.219e-05,2]
[361216094,1747351515784,150.0,9.888e-05,2]
[361216095,1747351517510,818.87,9.52e-05,2]
[361216096,1747351525713,150.0,9.836e-05,7]
[361216097,1747351529017,1803.9166534,9.528e-05,2]
[361216098,1747351529040,8282.6433466,9.528e-05,2]
[361216099,1747351535724,583.17602281,9e-05,2]
[361216100,1747351537017,490.0,9.528e-05,2]
[361216101,1747351538161,-250.0,9.987e-05,2]
[361216102,1747351538182,-1000.0,0.00010018,2]
[361216103,1747351538203,-250.0,0.00010029,2]
[361216104,1747351538226,-1000.0,0.00010047,2]
[361216105,1747351538247,-250.0,0.00010061,2]
[361216106,1747351538269,-1000.0,0.00010063,2]
[361216107,1747351538291,-157.1,0.00010125,2]
[361216108,1747351538315,-157.1,0.00010142,2]
[361216109,1747351538336,-157.1,0.00010158,2]
[361216110,1747351538357,-700.31,0.0001016,2]
[361216111,1747351538378,-157.1,0.00010175,2]
[361216112,1747351538400,-500.0,0.00010176,3]
[361216113,1747351538421,-1000.0,0.00010204,2]
[361216114,1747351538443,-1000.0,0.00010246,2]
[361216115,1747351538463,-1200.0,0.00010315,2]
[361216116,1747351538484,-1000.0,0.00010316,2]
[361216117,1747351538505,-300.0,0.00010377,2]
[361216118,1747351538528,-1000.0,0.00010379,2]
[361216119,1747351538545,-803.51,0.000104,2]
[361216120,1747351538563,-1405.36,0.00010452,2]
[361216121,1747351538582,-1000.0,0.00010471,2]
[361216122,1747351538601,-389.09,0.00010475,2]
[361216123,1747351538621,-150.99,0.00010475,2]
[361216124,1747351538643,-1000.0,0.0001048,2]
[361216125,1747351538664,-150.0,0.000105,2]
[361216126,1747351538686,-409.9,0.0001054,2]
[361216127,1747351538708,-1000.0,0.00010638,2]
[361216128,1747351538731,-818.87,0.0001071,2]
[361216129,1747351538754,-1000.0,0.0001075,2]
[361216130,1747351538776,-173.746,0.0001079,2]
[361216131,1747351538798,-1322.0,0.000108,2]
[361216132,1747351538820,-1000.0,0.00010827,2]
[361216133,1747351538842,-593.73942809,0.00010867,2]
[361216134,1747351538864,-422.90388637,0.00010889,2]
[361216135,1747351538895,-500.0,0.00010889,2]
[361216136,1747351538922,-500.0,0.00010889,2]
[361216137,1747351538949,-500.0,0.00010889,2]
[361216138,1747351538976,-500.0,0.00010889,2]
[361216139,1747351539005,-500.0,0.00010889,2]
[361216140,1747351539034,-500.0,0.00010889,2]
[361216141,1747351539062,-500.0,0.00010889,2]
[361216142,1747351539092,-500.0,0.00010889,2]
[361216143,1747351539119,-500.0,0.00010889,2]
[361216144,1747351539147,-500.0,0.00010889,2]
[361216145,1747351539174,-500.0,0.00010889,2]
[361216146,1747351539202,-500.0,0.00010889,2]
[361216147,1747351539230,-500.0,0.00010889,2]
[361216148,1747351539258,-500.0,0.00010889,2]
[361216149,1747351539284,-500.0,0.00010889,2]
[361216150,1747351539313,-638.88552357,0.00010889,2]
[361216151,1747351539337,-500.0,0.00010889,2]
[361216152,1747351539363,-500.0,0.00010889,2]
[361216153,1747351539391,-500.0,0.00010889,2]
[361216154,1747351539418,-500.0,0.00010889,2]
[361216155,1747351539445,-500.0,0.00010889,2]
[361216156,1747351539471,-500.0,0.00010889,2]
[361216157,1747351539498,-500.0,0.00010889,2]
[361216158,1747351539525,-500.0,0.00010889,2]
[361216159,1747351539546,-50352.00891772,0.0001089,2]
[361216160,1747351540044,10087.8184511,0.00025,30]
[361216161,1747351552087,-500.0,0.00010889,2]
[361216162,1747351552107,-375.27668526,0.00010889,2]
[361216163,1747351552128,-37048.88221697,0.0001089,2]
[361216164,1747351601077,-450.0,0.0001,2]
[361216165,1747351601099,-415.59,0.00010113,2]
[361216166,1747351601121,-1880.0,0.000108,2]
[361216167,1747351601143,-207.4,0.00010893,2]
[361216168,1747351601164,-250.0,0.00010896,2]
[361216169,1747351601186,-200.0,0.000109,2]
[361216170,1747351601207,-200.0,0.000109,2]
[361216171,1747351601228,-155.64744057,0.000109,2]
[361216172,1747351601249,-165.68994279,0.000109,2]
[361216173,1747351601270,-976.00815132,0.000109,2]
[361216189,1747351770857,156.19,9.531e-05,2]
[361216217,1747351832457,-629.13304438,0.0001,2]
[361216218,1747351832468,-14.76123662,0.00010025,2]
[361216219,1747351832586,-185.23876338,0.00010025,2]
[361216220,1747351832597,-150.0,0.00010042,2]
[361216221,1747351832606,-606.06,0.00010049,2]
[361216222,1747351832616,-200.0,0.00010442,2]
[361216223,1747351832626,-200.0,0.00010712,2]
[361216224,1747351832638,-207.4,0.00010883,2]
[361216225,1747351832647,-251.30123663,0.00010898,2]
[361216226,1747351832659,-48.69876337,0.00010898,2]
[361216227,1747351832668,-764.47089287,0.00010899,2]
[361216228,1747351832680,-435.52910713,0.00010899,2]
[361216229,1747351832689,-300.0,0.00010899,2]
[361216230,1747351832699,-1350.02147287,0.00010899,2]
[361216235,1747351838348,-3649.97852713,0.00010899,2]
[361216236,1747351838359,-346.47580638,0.000109,2]
[361216237,1747351838368,-321.12100927,0.000109,2]
[361216238,1747351838378,-277.77665058,0.000109,2]
[361216239,1747351838387,-4617.3626596,0.00010944,2]
[361216240,1747351838399,-37857.30297144,0.00010959,2]
[361216241,1747351838408,-150.0,0.00010986,2]
[361216242,1747351838418,-155.0,0.00010993,2]
[361216243,1747351838427,-719.52358209,0.00010993,2]
[361216244,1747351838438,-151.0,0.00010993,2]
[361216245,1747351838447,-200.0,0.00010993,2]
[361216246,1747351838457,-668.65185757,0.00010993,2]
[361216247,1747351838467,-151.27422446,0.00010993,2]
[361216248,1747351838477,-151.0,0.00010993,2]
[361216249,1747351838487,-18229.4240901,0.00010998,2]
[361216250,1747351838496,-1995.818355,0.00010998,2]
[361216251,1747351838506,-418.8675077,0.00010998,2]
[361216252,1747351838516,-194.95906157,0.00010998,2]
[361216253,1747351838527,-184.76461271,0.00010998,2]
[361216254,1747351838536,-224.01399181,0.00010998,2]
[361216255,1747351838545,-180.46635268,0.00010998,2]
[361216256,1747351838555,-565.70221659,0.00010998,2]
[361216257,1747351838564,-565.70221659,0.00010998,2]
[361216258,1747351838575,-565.70221659,0.00010998,2]
[361216259,1747351838584,-565.70221659,0.00010998,2]
[361216260,1747351838594,-565.70221659,0.00010998,2]
[361216261,1747351838603,-214.88710912,0.00010998,2]
[361216262,1747351838615,-350.81510747,0.00010998,2]
[361216264,1747351838626,-565.70221659,0.00010998,2]
[361216266,1747351838635,-565.70221659,0.00010998,2]
[361216268,1747351838645,-565.70221659,0.00010998,2]
[361216269,1747351838655,-565.70221659,0.00010998,2]
[361216270,1747351838664,-565.70221659,0.00010998,2]
[361216271,1747351838674,-565.70221659,0.00010998,2]
[361216272,1747351838683,-565.70221659,0.00010998,2]
[361216273,1747351838693,-565.70221659,0.00010998,2]
[361216274,1747351838703,-565.70221659,0.00010998,2]
[361216275,1747351838712,-565.70221659,0.00010998,2]
[361216276,1747351838723,-565.70221659,0.00010998,2]
[361216277,1747351838732,-565.70221659,0.00010998,2]
[361216278,1747351838741,-565.70221659,0.00010998,2]
[361216279,1747351838751,-285.25607686,0.00010998,2]
[361216281,1747351839314,-280.44613973,0.00010998,2]
[361216282,1747351839323,-565.70221659,0.00010998,2]
[361216283,1747351839333,-565.70221659,0.00010998,2]
[361216284,1747351839342,-565.70221659,0.00010998,2]
[361216285,1747351839353,-565.70221659,0.00010998,2]
[361216286,1747351839362,-565.70221659,0.00010998,2]
[361216287,1747351839371,-565.70221659,0.00010998,2]
[361216288,1747351839382,-565.70221659,0.00010998,2]
[361216289,1747351839393,-565.70221659,0.00010998,2]
[361216290,1747351839405,-565.70221659,0.00010998,2]
[361216291,1747351839550,-565.70221659,0.00010998,2]
[361216292,1747351839560,-565.70221659,0.00010998,2]
[361216293,1747351839569,-565.70221659,0.00010998,2]
[361216294,1747351839581,-565.70221659,0.00010998,2]
[361216295,1747351839589,-565.70221659,0.00010998,2]
[361216296,1747351839599,-565.70221659,0.00010998,2]
[361216297,1747351839608,-565.70221659,0.00010998,2]
[361216298,1747351839617,-565.70221659,0.00010998,2]
[361216299,1747351839627,-565.70221659,0.00010998,2]
[361216300,1747351839638,-565.70221659,0.00010998,2]
[361216301,1747351839647,-565.70221659,0.00010998,2]
[361216302,1747351839659,-565.70221659,0.00010998,2]
[361216303,1747351839668,-565.70221659,0.00010998,2]
[361216304,1747351839678,-565.70221659,0.00010998,2]
[361216305,1747351839687,-565.70221659,0.00010998,2]
[361216306,1747351839697,-565.70221659,0.00010998,2]
[361216307,1747351839706,-565.70221659,0.00010998,2]
[361216308,1747351839715,-565.70221659,0.00010998,2]
[361216309,1747351839724,-565.70221659,0.00010998,2]
[361216310,1747351839734,-565.70221659,0.00010998,2]
[361216311,1747351839743,-565.70221659,0.00010998,2]
[361216312,1747351839752,-565.70221659,0.00010998,2]
[361216313,1747351839762,-565.70221659,0.00010998,2]
[361216314,1747351839771,-565.70221659,0.00010998,2]
[361216315,1747351839781,-565.70221659,0.00010998,2]
[361216316,1747351839790,-565.70221659,0.00010998,2]
[361216317,1747351839799,-565.70221659,0.00010998,2]
[361216318,1747351839809,-565.70221659,0.00010998,2]
[361216319,1747351839818,-565.70221659,0.00010998,2]
[361216320,1747351839827,-565.70221659,0.00010998,2]
[361216321,1747351839836,-565.70221659,0.00010998,2]
[361216322,1747351839845,-565.70221659,0.00010998,2]
[361216323,1747351839855,-565.70221659,0.00010998,2]
[361216324,1747351839864,-561.80082199,0.00010998,2]
[361216325,1747351839873,-561.80082199,0.00010998,2]
[361216326,1747351839883,-561.80082199,0.00010998,2]
[361216327,1747351839892,-561.80082199,0.00010998,2]
[361216328,1747351839902,-561.80082199,0.00010998,2]
[361216329,1747351839911,-561.80082199,0.00010998,2]
[361216330,1747351839921,-561.80082199,0.00010998,2]
[361216331,1747351839930,-561.80082199,0.00010998,2]
[361216332,1747351839940,-561.80082199,0.00010998,2]
[361216333,1747351839951,-561.80082199,0.00010998,2]
[361216334,1747351839960,-561.80082199,0.00010998,2]
[361216335,1747351839970,-561.80082199,0.00010998,2]
[361216336,1747351839980,-561.80082199,0.00010998,2]
[361216337,1747351839990,-561.80082199,0.00010998,2]
[361216338,1747351840000,-561.80082199,0.00010998,2]
[361216339,1747351840010,-561.80082199,0.00010998,2]
[361216340,1747351840019,-561.80082199,0.00010998,2]
[361216341,1747351840029,-561.80082199,0.00010998,2]
[361216342,1747351840039,-561.80082199,0.00010998,2]
[361216343,1747351840049,-561.80082199,0.00010998,2]
[361216344,1747351840059,-561.80082199,0.00010998,2]
[361216345,1747351840068,-561.80082199,0.00010998,2]
[361216346,1747351840077,-561.80082199,0.00010998,2]
[361216347,1747351840086,-561.80082199,0.00010998,2]
[361216348,1747351840096,-561.80082199,0.00010998,2]
[361216349,1747351840105,-561.80082199,0.00010998,2]
[361216350,1747351840114,-561.80082199,0.00010998,2]
[361216351,1747351840124,-561.80082199,0.00010998,2]
[361216352,1747351840133,-561.80082212,0.00010998,2]
[361216354,1747351840143,-3814.765,0.00010999,2]
[361216355,1747351840152,-194.43,0.00010999,2]
[361216356,1747351840161,-200.0,0.00010999,2]
[361216357,1747351840171,-193.51976381,0.00010999,2]
[361216358,1747351840181,-348.57640491,0.00010999,2]
[361216359,1747351840191,-300.0,0.00010999,2]
[361216361,1747351840200,-556.0,0.00010999,2]
[361216363,1747351840209,-116446.40164901,0.00010999,2]
[361216369,1747351842073,-232.38426994,0.000109,2]
[361216370,1747351842083,-177.39311683,0.000109,2]
[361216371,1747351842092,-14590.22261323,0.00010999,2]
[361216385,1747351843885,-151.13102532,0.0001099,2]
[361216386,1747351843895,-74.05059407,0.00010998,2]
[361216392,1747351844397,-118.12528249,0.00010998,2]
[361216393,1747351844407,-309.84569325,0.00010998,2]
[361216394,1747351844416,-43531.98157283,0.00010999,2]
[361216408,1747351844638,-10228.39068786,0.00010999,2]
[361216409,1747351844677,-70225.57881177,0.00010999,2]
[361216410,1747351844717,-734251.32702727,0.00010999,2]
[361216411,1747351844726,-226.31951796,0.00010999,2]
[361216412,1747351844736,-100809.12943413,0.00011,2]
[361216413,1747351844746,-285628.94801759,0.00011,2]
[361216415,1747351846372,-4715.24374,0.00011,2]
[361216781,1747351850642,-347275.98930803,0.00011,2]
[361216783,1747351850652,-151.0,0.00011,2]
[361216785,1747351850661,-151.0,0.00011,2]
[361216787,1747351850671,-152.723621,0.00011,2]
[361216789,1747351850680,-151.0,0.00011,2]
[361216791,1747351850689,-151.0,0.00011,2]
[361216793,1747351850699,-151.0,0.00011,2]
[361216795,1747351850709,-151.0,0.00011,2]
[361216797,1747351850718,-161.011857,0.00011,2]
[361216799,1747351850727,-151.0,0.00011,2]
[361216801,1747351850736,-151.0,0.00011,2]
[361216802,1747351850746,-151.0,0.00011,2]
[361216803,1747351850755,-151.0,0.00011,2]
[361216804,1747351850764,-162.69437,0.00011,2]
[361216805,1747351850774,-151.0,0.00011,2]
[361216806,1747351850783,-162.69437,0.00011,2]
[361216807,1747351850793,-151.0,0.00011,2]
[361216808,1747351850802,-151.0,0.00011,2]
[361216809,1747351850812,-151.0,0.00011,2]
[361216811,1747351850822,-251.066305,0.00011,2]
[361216813,1747351850831,-251.066305,0.00011,2]
[361216815,1747351850840,-151.0,0.00011,2]
[361216817,1747351850850,-1904.562352,0.00011,2]
[361216819,1747351850859,-1904.562352,0.00011,2]
[361216821,1747351850868,-151.463289,0.00011,2]
[361216823,1747351850878,-151.30198,0.00011,2]
[361216825,1747351850887,-151.0,0.00011,2]
[361216827,1747351850897,-151.0,0.00011,2]
[361216829,1747351850907,-151.0,0.00011,2]
[361216831,1747351850916,-216.164557,0.00011,2]
[361216833,1747351850926,-151.0,0.00011,2]
[361216835,1747351850935,-151.0,0.00011,2]
[361216837,1747351850945,-257.482806,0.00011,2]
[361216839,1747351850954,-257.482806,0.00011,2]
[361216841,1747351850963,-151.0,0.00011,2]
[361216843,1747351850973,-151.0,0.00011,2]
[361216845,1747351850982,-215.850851,0.00011,2]
[361216847,1747351850991,-151.0,0.00011,2]
[361216849,1747351851001,-151.0,0.00011,2]
[361216851,1747351851010,-151.0,0.00011,2]
[361216853,1747351851020,-151.0,0.00011,2]
[361216855,1747351851029,-151.0,0.00011,2]
[361216857,1747351851038,-357.19292,0.00011,2]
[361216859,1747351851047,-357.19292,0.00011,2]
[361216861,1747351851057,-875.30003,0.00011,2]
[361216863,1747351851066,-875.30003,0.00011,2]
[361216865,1747351851075,-151.369485,0.00011,2]
[361216867,1747351851085,-151.0,0.00011,2]
[361216869,1747351851094,-151.0,0.00011,2]
[361216871,1747351851104,-258.608104,0.00011,2]
[361216873,1747351851113,-290.080223,0.00011,2]
[361216875,1747351851123,-290.080223,0.00011,2]
[361216877,1747351851132,-151.0,0.00011,2]
[361216879,1747351851142,-151.0,0.00011,2]
[361216881,1747351851151,-151.0,0.00011,2]
[361216883,1747351851161,-151.0,0.00011,2]
[361216885,1747351851170,-151.0,0.00011,2]
[361216887,1747351851179,-151.0,0.00011,2]
[361216889,1747351851189,-151.0,0.00011,2]
[361216891,1747351851198,-151.0,0.00011,2]
[361216893,1747351851207,-151.0,0.00011,2]
[361216895,1747351851217,-151.0,0.00011,2]
[361216897,1747351851227,-151.0,0.00011,2]
[361216899,1747351851236,-151.0,0.00011,2]
[361216901,1747351851246,-151.0,0.00011,2]
[361216903,1747351851254,-151.0,0.00011,2]
[361216905,1747351851263,-151.0,0.00011,2]
[361216907,1747351851272,-151.0,0.00011,2]
[361216909,1747351851290,-194.124862,0.00011,2]
[361216911,1747351851300,-194.124862,0.00011,2]
[361216913,1747351851309,-151.0,0.00011,2]
[361216915,1747351851318,-214.108318,0.00011,2]
[361216917,1747351851329,-214.108318,0.00011,2]
[361216919,1747351851338,-193.713786,0.00011,2]
[361216921,1747351851347,-151.0,0.00011,2]
[361216923,1747351851357,-151.0,0.00011,2]
[361216925,1747351851366,-151.0,0.00011,2]
[361216927,1747351851375,-6183.157413,0.00011,2]
[361216929,1747351851384,-151.0,0.00011,2]
[361216931,1747351851395,-6183.157413,0.00011,2]
[361216933,1747351851405,-151.0,0.00011,2]
[361216935,1747351851414,-151.0,0.00011,2]
[361216937,1747351851423,-151.0,0.00011,2]
[361216939,1747351851432,-151.0,0.00011,2]
[361216941,1747351851442,-151.0,0.00011,2]
[361216943,1747351851451,-151.0,0.00011,2]
[361216945,1747351851460,-203.938808,0.00011,2]
[361216947,1747351851470,-151.0,0.00011,2]
[361216948,1747351851479,-151.0,0.00011,2]
[361216950,1747351851489,-151.0,0.00011,2]
[361216952,1747351851498,-151.0,0.00011,2]
[361216954,1747351851507,-151.0,0.00011,2]
[361216956,1747351851516,-151.0,0.00011,2]
[361216958,1747351851527,-153.196447,0.00011,2]
[361216961,1747351851537,-153.196447,0.00011,2]
[361216963,1747351851546,-173.767944,0.00011,2]
[361216965,1747351851556,-151.0,0.00011,2]
[361216967,1747351851565,-151.0,0.00011,2]
[361216969,1747351851575,-151.0,0.00011,2]
[361216971,1747351851585,-151.0,0.00011,2]
[361216973,1747351851594,-151.0,0.00011,2]
[361216975,1747351851604,-151.0,0.00011,2]
[361216977,1747351851613,-151.0,0.00011,2]
[361216979,1747351851623,-151.0,0.00011,2]
[361216981,1747351851634,-151.0,0.00011,2]
[361216983,1747351851643,-188.989152,0.00011,2]
[361216985,1747351851653,-188.989152,0.00011,2]
[361216987,1747351851662,-152.577407,0.00011,2]
[361216989,1747351851671,-151.0,0.00011,2]
[361216991,1747351851681,-151.0,0.00011,2]
[361216993,1747351851690,-151.0,0.00011,2]
[361216995,1747351851700,-151.0,0.00011,2]
[361216997,1747351851710,-151.0,0.00011,2]
[361216999,1747351851719,-151.0,0.00011,2]
[361217001,1747351851728,-196.576946,0.00011,2]
[361217003,1747351851738,-196.576946,0.00011,2]
[361217005,1747351851748,-347.177907,0.00011,2]
[361217007,1747351851757,-347.177907,0.00011,2]
[361217009,1747351851766,-323.70981,0.00011,2]
[361217011,1747351851777,-323.70981,0.00011,2]
[361217013,1747351851786,-198.432882,0.00011,2]
[361217015,1747351851795,-198.432882,0.00011,2]
[361217017,1747351851805,-151.0,0.00011,2]
[361217019,1747351851814,-151.0,0.00011,2]
[361217021,1747351851823,-151.0,0.00011,2]
[361217023,1747351851832,-151.0,0.00011,2]
[361217025,1747351851841,-362.45256,0.00011,2]
[361217026,1747351851851,-151.0,0.00011,2]
[361217029,1747351851862,-151.0,0.00011,2]
[361217031,1747351851873,-362.45256,0.00011,2]
[361217032,1747351851883,-220.999999,0.00011,2]
[361217035,1747351851893,-770.355079,0.00011,2]
[361217037,1747351851902,-770.355079,0.00011,2]
[361217039,1747351851912,-151.0,0.00011,2]
[361217040,1747351851921,-151.0,0.00011,2]
[361217043,1747351851930,-151.0,0.00011,2]
[361217045,1747351851940,-151.0,0.00011,2]
[361217047,1747351851949,-151.0,0.00011,2]
[361217049,1747351851958,-488.718841,0.00011,2]
[361217051,1747351851968,-488.718841,0.00011,2]
[361217053,1747351851977,-151.0,0.00011,2]
[361217055,1747351851986,-488.718841,0.00011,2]
[361217057,1747351851995,-488.718841,0.00011,2]
[361217059,1747351852004,-189.571471,0.00011,2]
[361217061,1747351852013,-151.025189,0.00011,2]
[361217062,1747351852022,-506.692783,0.00011,2]
[361217063,1747351852034,-506.692783,0.00011,2]
[361217064,1747351852043,-506.692783,0.00011,2]
[361217065,1747351852052,-506.692783,0.00011,2]
[361217066,1747351852061,-151.0,0.00011,2]
[361217067,1747351852070,-151.0,0.00011,2]
[361217068,1747351852079,-151.0,0.00011,2]
[361217069,1747351852089,-2223.501251,0.00011,2]
[361217071,1747351852098,-2223.501251,0.00011,2]
[361217073,1747351852107,-2223.501251,0.00011,2]
[361217075,1747351852117,-2223.501251,0.00011,2]
[361217077,1747351852126,-349.584912,0.00011,2]
[361217079,1747351852136,-349.584912,0.00011,2]
[361217081,1747351852145,-349.584912,0.00011,2]
[361217083,1747351852154,-349.584912,0.00011,2]
[361217085,1747351852163,-1000.0,0.00011,2]
[361217087,1747351852173,-30889.76263685,0.00011,2]
[361217089,1747351852182,-151.0,0.00011,2]
[361217091,1747351852192,-151.0,0.00011,2]